Cogmind - Beta 11.1 @@@ ROGUE MODE // 2022.10.16 @ 13:11:17 Player: Beepinex Result: Destroyed by C-17 Slicer with Blade Saw Performance ------------- Evolutions (2) 1000 Regions Visited (5) 1000 Robots Destroyed (35) 175 Value Destroyed (707) 707 Prototype IDs (1) 20 Alien Tech Used (0) 0 Bonus (421) 421 TOTAL SCORE: 3323 Bonus ------- High Alert Combat Kills 41 Follower Combat Kills 95 Aligned with FarCom 300 Friendly Fire -15 Cogmind --------- Core Integrity 0/550 Matter 295/300 Energy 100/100 System Corruption 2% Temperature Cool (0) Movement Core (50) Location -8/Materials Parts ------- > --- POWER (1) -------- (None) > --- PROPULSION (3) --- (None) > --- UTILITY (5) ------ (None) > --- WEAPON (2) ------- (None) > --- INVENTORY (5) ---- Heat Sink Small Storage Unit Advanced Weight Redist. System Grenade Launcher Peak State ------------ > --- POWER ------------ Light Nuclear Core > --- PROPULSION ------- Flight Unit Flight Unit VTOL Module > --- UTILITY ---------- Advanced Weight Redist. System Advanced Targeting Computer Improved Propulsion Shielding System Shield Supersonic Drone Bay > --- WEAPON ----------- EM Pulse Cannon Mini Grenade Launcher > --- INVENTORY -------- Heat Sink Advanced Weight Redist. System Grenade Launcher Improved Datajack [Rating: 32] Favorites ----------- Power Light Ion Engine Engine Light Ion Engine Power Core Light Nuclear Core Propulsion Flight Unit Wheel Wheel Flight Unit Flight Unit Utility Seismic Detector Device Seismic Detector Storage Small Storage Unit Processor Targeting Computer Hackware System Shield Protection Improved Propulsion Shielding Weapon Mini Grenade Launcher Energy Gun Beam Rifle Energy Cannon EM Pulse Cannon Launcher Mini Grenade Launcher Special Melee Weapon Improved Datajack Build | -11 -10 -10 -10 -9 -8 ------- Run | Scr Mat Min Exi Min Mat Slots Evolved 4 | . . . . . 4 Power . | . . . . . . Propulsion 1 | . . . . . 1 Utility 3 | . . . . . 3 Weapon . | . . . . . . Parts Attached 43 | 8 10 2 1 1 21 Power 6 | 2 1 . . . 3 Engine 4 | 2 1 . . . 1 Core 2 | . . . . . 2 Reactor . | . . . . . . Propulsion 13 | 3 5 . . 1 4 Treads . | . . . . . . Leg . | . . . . . . Wheel 4 | 3 1 . . . . Hover . | . . . . . . Flight 9 | . 4 . . 1 4 Utility 13 | 1 1 1 . . 10 Device 6 | . 1 . . . 5 Storage 2 | 1 . . . . 1 Processor 2 | . . 1 . . 1 Hackware 1 | . . . . . 1 Protection 2 | . . . . . 2 Artifact . | . . . . . . Weapon 11 | 2 3 1 1 . 4 Energy Gun 5 | 2 2 . 1 . . Energy Cannon 1 | . . . . . 1 Ballistic Gun . | . . . . . . Ballistic Cannon . | . . . . . . Launcher 4 | . 1 1 . . 2 Special Weapon . | . . . . . . Impact Weapon . | . . . . . . Slashing Weapon . | . . . . . . Piercing Weapon . | . . . . . . Special Melee Weapon 1 | . . . . . 1 Unidentified Prototypes 1 | . . . . . 1 Parts Lost 14 | . 3 . . . 11 Power 1 | . . . . . 1 Propulsion 6 | . 2 . . . 4 Utility 3 | . . . . . 3 Weapon 4 | . 1 . . . 3 Highest Loss Streak 6 | . 1 . . . 6 To Critical Strikes . | . . . . . . Average Slot Usage (%) 90 | . 91 93 100 100 83 Engine 10 | . 14 14 14 14 2 Core 1 | . . . . . 5 Wheel 10 | . 20 . . . . Flight 15 | . 7 28 28 28 22 Device 12 | . 10 14 14 14 13 Storage 5 | . 10 . . . . Processor 4 | . . 8 14 14 8 Hackware 2 | . . . . . 7 Protection 1 | . . . . . 5 Energy Gun 16 | . 24 14 14 14 4 Energy Cannon 1 | . . . . . 3 Launcher 6 | . 3 14 14 14 8 Naked Turns 11 | . . . . . 11 Heaviest Build 19 | 14 13 8 8 8 19 Greatest Support 26 | 26 20 8 8 8 21 Greatest Overweight (x) 4 | . 4 . . . 1 Average Overweight (x) . | . . . . . . Largest Inventory Capacity 8 | 8 8 5 5 5 8 Average Capacity 6 | 7 7 5 5 5 5 Most Carried 6 | 6 6 5 5 5 5 Average Carried 4 | 2 4 4 5 5 4 Final Capacity 8 | 8 5 5 5 5 5 Final Carried 5 | 5 4 5 5 5 4 Class Distribution -------------------- 83% | Mutant 16% | Sprinter Dominant Class ---------------- Mutant | -10/Materials Mutant | -10/Mines Mutant | -10/Exiles Mutant | -9/Mines Sprinter | -8/Materials Resources | -11 -10 -10 -10 -9 -8 ----------- Run | Scr Mat Min Exi Min Mat Matter Collected 675 | 280 50 105 . . 240 Remotely . | . . . . . . Salvage Created 944 | 169 344 . . 21 410 Parts 76 | 17 22 . . 4 33 Haulers Intercepted . | . . . . . . Recyclers Shooed . | . . . . . . Parts Field Recycled . | . . . . . . Retrieved Matter . | . . . . . . Parts Self-Destructed . | . . . . . . Prevented . | . . . . . . Kills | -11 -10 -10 -10 -9 -8 ------- Run | Scr Mat Min Exi Min Mat Combat Hostiles Destroyed 21 | . 7 . . 3 11 Guns 7 | . 5 . . . 2 Cannons 2 | . . . . . 2 AOE 11 | . 2 . . 3 6 Classes Destroyed 8 | 3 4 . . . 1 Worker 3 | 1 2 . . . . Tunneler 3 | 3 . . . . . Recycler 1 | 1 . . . . . Operator 1 | . 1 . . . . Watcher 6 | . 3 . . . 3 Swarmer 11 | . 2 . . 3 6 Grunt 5 | . 5 . . . . Sentry 5 | . . . . . 5 Best Kill Streak 6 | 2 3 . . 3 6 Combat Bots Only 6 | . 2 . . 3 6 Max Kills in Single Turn 3 | 1 1 . . 3 3 Gunslinging . | . . . . . . Exploded 3 | . 1 . . 3 3 Melee . | . . . . . . Uniques/NPCs Destroyed . | . . . . . . Combat | -11 -10 -10 -10 -9 -8 -------- Run | Scr Mat Min Exi Min Mat Damage Taken 1582 | . 419 . . 30 1133 Core 639 | . 67 . . 14 558 Absorbed by Shields . | . . . . . . Redirected to Shielding 101 | . . . . . 101 Core Remaining (%) 83 | 100 . . . 67 . Volleys Fired 96 | 23 29 . . 1 43 Largest 2 | 1 2 . . 1 2 Hottest 90 | 50 90 . . 30 86 Shots Fired 120 | 23 51 . . 1 45 Gun 96 | 23 46 . . . 27 Cannon 12 | . . . . . 12 Launcher 12 | . 5 . . 1 6 Special . | . . . . . . Kinetic . | . . . . . . Thermal 72 | 21 24 . . . 27 Explosive 12 | . 5 . . 1 6 Electromagnetic 36 | 2 22 . . . 12 Robot Hit Streak 13 | 6 13 . . . 8 Robot Miss Streak 6 | 3 5 . . . 6 Penetration Max . | . . . . . . Secondary Targets . | . . . . . . Shots Hit Robots 73 | 13 32 . . . 28 Core Hits 40 | 5 18 . . 1 16 Critical Kills . | . . . . . . Critical Parts Destroyed . | . . . . . . Critical Strikes 6 | 2 2 . . . 2 Burn 5 | 2 1 . . . 2 Corrupt 1 | . 1 . . . . Melee Attacks 2 | . . . . . 2 Impact . | . . . . . . Slashing . | . . . . . . Piercing . | . . . . . . Sneak Attacks . | . . . . . . Combat Hostiles . | . . . . . . Follow-up Attacks . | . . . . . . Damage Inflicted 1925 | 188 697 . . 128 912 Guns 835 | 188 428 . . . 219 Cannons 363 | . . . . . 363 Explosions 727 | . 269 . . 128 330 Melee . | . . . . . . Ramming . | . . . . . . Kinetic . | . . . . . . Thermal 578 | 161 198 . . . 219 Explosive 696 | . 238 . . 128 330 Electromagnetic 651 | 27 261 . . . 363 Impact . | . . . . . . Slashing . | . . . . . . Piercing . | . . . . . . Highest Corruption 2 | . . . . . 2 Average Corruption 1 | . . . . . 1 Corruption Purged . | . . . . . . Corruption Blocked . | . . . . . . Effects 1 | . . . . . 1 Message Errors 1 | . . . . . 1 Overload Shots . | . . . . . . Overflow Damage 115 | . 37 . . 42 36 Projectiles 12 | . . . . . 12 Explosions 103 | . 37 . . 42 24 Melee . | . . . . . . Knockbacks . | . . . . . . Impact . | . . . . . . Kinetic . | . . . . . . Secondary . | . . . . . . Self-Inflicted Damage 130 | . 109 . . 21 . Shots 5 | . 4 . . 1 . Rammed . | . . . . . . Targets Rammed . | . . . . . . Kicked . | . . . . . . Crushed . | . . . . . . Highest Temperature 216 | 40 216 . . . 191 Average Temperature 62 | 19 88 . . . 54 Received Heat Transfer 327 | . 174 . . . 153 Effects 1 | . 1 . . . . Interference 1 | . 1 . . . . Siege Activations . | . . . . . . Robots Corrupted . | . . . . . . Combat Hostiles . | . . . . . . Parts Fried 7 | . 3 . . . 4 Impact Corruptions . | . . . . . . Robots Melted 1 | . . . . . 1 Combat Hostiles 1 | . . . . . 1 Parts Melted 1 | . . . . . 1 Heat Transferred 1937 | 629 605 . . . 703 Parts Sabotaged . | . . . . . . Parts Stolen . | . . . . . . Parts Stripped . | . . . . . . Power Chain Reactions 1 | . 1 . . . . Missiles Intercepted . | . . . . . . Alert | -11 -10 -10 -10 -9 -8 ------- Run | Scr Mat Min Exi Min Mat Peak Influence 622 | 25 485 189 . 142 622 Initial 189 | . 16 189 . . 55 Average 195 | 10 126 189 . 139 367 Maximum Alert Level 2 | . 2 . . . 2 Low Security (%) 67 | 100 84 100 . 100 20 Level 1 13 | . 10 . . . 25 Level 2 18 | . 4 . . . 54 Level 3 . | . . . . . . Level 4 . | . . . . . . Level 5 . | . . . . . . High Security . | . . . . . . Max Security . | . . . . . . Squads Dispatched 5 | . 3 . . . 2 Investigation 3 | . 2 . . . 1 Extermination . | . . . . . . Reinforcement 2 | . 1 . . . 1 Assault . | . . . . . . Garrison . | . . . . . . Intercept . | . . . . . . Searches Triggered . | . . . . . . Construction Impeded . | . . . . . . Haulers Reinforced . | . . . . . . Active Scanning Responses . | . . . . . . Cargo Convoy Interrupts . | . . . . . . Stealth | -11 -10 -10 -10 -9 -8 --------- Run | Scr Mat Min Exi Min Mat Distress Signals 4 | . 1 . . . 3 Communications Jammed . | . . . . . . Distress Signals . | . . . . . . Times Spotted 60 | . 28 . . 1 31 Peak Tracking Total 8 | . 8 . . 1 8 Tactical Retreats 8 | . 4 . . . 4 Traps | -11 -10 -10 -10 -9 -8 ------- Run | Scr Mat Min Exi Min Mat Traps Triggered 2 | . 1 . . . 1 Indirectly . | . . . . . . Trap Hack Attempts . | . . . . . . Triggered . | . . . . . . Disarmed . | . . . . . . Reprogrammed . | . . . . . . Reused . | . . . . . . Traps Extracted . | . . . . . . Installed . | . . . . . . Triggered . | . . . . . . Machines | -11 -10 -10 -10 -9 -8 ---------- Run | Scr Mat Min Exi Min Mat Machines Disabled 2 | . . . . 1 1 Max in Single Turn 1 | . . . . 1 1 Machines Sabotaged . | . . . . . . Garrisons Compromised . | . . . . . . Overloaded Fab Kills . | . . . . . . Hacking | -11 -10 -10 -10 -9 -8 --------- Run | Scr Mat Min Exi Min Mat Machines Accessed 20 | . 9 1 1 1 8 Terminals 13 | . 7 . . 1 5 Fabricators . | . . . . . . Repair Stations . | . . . . . . Recycling Units 4 | . 2 . . . 2 Scanalyzers 1 | . . . . . 1 Garrison Access . | . . . . . . Total Hacks 77 | . 30 1 2 1 43 Successful 45 | . 9 1 2 1 32 Failed 32 | . 21 . . . 11 Catastrophic 6 | . 5 . . . 1 Database Lockouts . | . . . . . . Manual 62 | . 30 . 1 1 30 Terminals 47 | . 23 . . 1 23 Fabricators . | . . . . . . Repair Stations . | . . . . . . Recycling Units 14 | . 7 . . . 7 Scanalyzers 13 | . . . . . 13 Garrison Access . | . . . . . . Terminal Hacks 8 | . 1 1 2 1 3 Record 2 | . . . 2 . . Open Door 1 | . . 1 . . . Level Access Points 1 | . . . . 1 . Terminal Index 2 | . 1 . . . 1 Recycling Unit Index 1 | . . . . . 1 Maintenance Status 1 | . . . . . 1 Fabricator Hacks . | . . . . . . Repair Station Hacks . | . . . . . . Recycling Unit Hacks . | . . . . . . Scanalyzer 13 | . . . . . 13 Insert Component 6 | . . . . . 6 Analyze 7 | . . . . . 7 Garrison Access Hacks . | . . . . . . Unauthorized Hacks 24 | . 8 . . . 16 Terminals 13 | . 4 . . . 9 Track 4 | . 2 . . . 2 Assimilate 3 | . 1 . . . 2 Botnet 4 | . 1 . . . 3 Disrupt 1 | . . . . . 1 Operators 1 | . . . . . 1 Fabricators . | . . . . . . Repair Stations . | . . . . . . Recycling Units 11 | . 4 . . . 7 Monitor 1 | . . . . . 1 Reject 4 | . 2 . . . 2 Recyclers 2 | . . . . . 2 Mask 4 | . 2 . . . 2 Scanalyzers . | . . . . . . Garrison Access . | . . . . . . Data Cores Recovered . | . . . . . . Used . | . . . . . . Hacking Detections 15 | . 9 . . 1 5 Full Trace Events 4 | . 3 . . . 1 Feedback Events 1 | . . . . . 1 Corruption 1 | . . . . . 1 Feedback Blocked . | . . . . . . Robot Schematics Acquired . | . . . . . . Robots Built . | . . . . . . Authchips . | . . . . . . Time . | . . . . . . Total Robot Build Rating . | . . . . . . Part Schematics Acquired 6 | . . . . . 6 Parts Built . | . . . . . . Authchips . | . . . . . . Time . | . . . . . . Total Part Build Rating . | . . . . . . Parts Repaired . | . . . . . . Time . | . . . . . . Parts Recycled . | . . . . . . Recycled Matter . | . . . . . . Retrieved Matter . | . . . . . . Retrieved Components . | . . . . . . Parts Scanalyzed 6 | . . . . . 6 Part Schematics Acquired 6 | . . . . . 6 Parts Damaged . | . . . . . . Bothacking | -11 -10 -10 -10 -9 -8 ------------ Run | Scr Mat Min Exi Min Mat Used RIF Installer . | . . . . . . Robots Hacked 1 | . . . . . 1 Non-combat . | . . . . . . Combat 1 | . . . . . 1 Robot Hacks Applied 1 | . . . . . 1 parse_system 1 | . . . . . 1 Relay Couplers Released . | . . . . . . Fabnet Peak Effective % . | . . . . . . Robots Rewired . | . . . . . . Allies Hacked . | . . . . . . Hacks Repelled . | . . . . . . Allies | -11 -10 -10 -10 -9 -8 -------- Run | Scr Mat Min Exi Min Mat Total Allies 4 | . . 3 . . 1 Largest Group 3 | . . 3 3 3 3 Highest-Rated Group 40 | . . 40 40 40 40 Highest-Rated Ally 16 | . . 16 16 16 16 Total Orders . | . . . . . . Ally Attacks 27 | . . . . 2 25 Total Damage 251 | . . . . 28 223 Kills 6 | . . . . 1 5 Allies Corrupted . | . . . . . . Allies Melted . | . . . . . . Intel | -11 -10 -10 -10 -9 -8 ------- Run | Scr Mat Min Exi Min Mat Robot Analysis Total . | . . . . . . Derelict Logs Recovered 1 | . . 1 . . . Drone Launches 2 | . . . . . 2 Drone Recoveries 1 | . . . . . 1 Exploration | -11 -10 -10 -10 -9 -8 ------------- Run | Scr Mat Min Exi Min Mat Turns Passed 1697 | 140 781 119 153 29 475 Spaces Moved 1965 | 83 687 246 220 32 697 Core 4 | 3 1 . . . . Treads . | . . . . . . Legs . | . . . . . . Wheels 378 | 80 298 . . . . Hover . | . . . . . . Flight 1583 | . 388 246 220 32 697 Fastest Speed 32 | 50 37 37 37 37 32 Average Speed 44 | 84 56 37 37 37 34 Slowest Speed 250 | 90 250 37 37 37 120 Overloaded Moves . | . . . . . . Propulsion Burnouts . | . . . . . . Robots Hopped 22 | . 9 3 . 1 9 Cave-ins Triggered . | . . . . . . Exploration Rate (%) 46 | 6 90 59 60 11 54 Regions Visited 5 Branch Regions 3 Pre-discovered Areas 1 | . . 1 . . . Known Exits Taken 1 | . . . . 1 . Unknown Exits Taken 4 | 1 1 1 1 . . Scrap Searched 1 | . . . . 1 . Spaces Dug . | . . . . . . Terrain Destroyed 123 | . 52 . . 6 65 Melee . | . . . . . . Projectile . | . . . . . . AOE 123 | . 52 . . 6 65 Terrain Rammed . | . . . . . . Walls Destroyed . | . . . . . . Machines Disabled . | . . . . . . Actions | -11 -10 -10 -10 -9 -8 --------- Run | Scr Mat Min Exi Min Mat Total 2637 | 130 1022 270 290 47 878 Wait 495 | . 289 20 68 14 104 Move 1920 | 82 672 239 219 29 679 Hop 18 | . 5 3 . 1 9 Pick Up 36 | 14 9 4 1 . 8 Fast Attach 7 | . 1 . . . 6 Attach 25 | 6 7 1 . . 11 Detach 4 | . . . . . 4 Swap 11 | 2 2 1 1 1 4 Drop 23 | 3 8 2 1 1 8 Fire 96 | 23 29 . . 1 43 Melee 2 | . . . . . 2 Ram . | . . . . . . Kick . | . . . . . . Crush . | . . . . . . Escape Stasis . | . . . . . . Rewire . | . . . . . . Trap . | . . . . . . Miscellaneous . | . . . . . . Route ------- -11/Scrapyard -10/Materials (discovered 4 exits: [*Mat x2] / *Min x2) -10/Mines (discovered 2 exits: [*Mat] / *Exi) -10/Exiles -9/Mines (discovered 2 exits: *Mat x2) -8/Materials (discovered 1 exit: [*Fac]) History --------- Turn | Location | Event 46 | -11/Scrapyard | Discovered new exit (range 12) 141 | -11/Scrapyard | Entered Materials 303 | -10/Materials | Build established: Mutant 731 | -10/Materials | Discovered new exit (range 10) 793 | -10/Materials | Discovered new exit (range 10) 821 | -10/Materials | Discovered new exit (range 10) 905 | -10/Materials | Discovered new exit (range 10) 922 | -10/Materials | Entered Mines 932 | -10/Mines | YI-UF0 nonchalantly dropped a Grenade Launcher on the ground 970 | -10/Mines | Discovered new exit (range 14) 984 | -10/Mines | Assisted by bots powering up and referring to "LRC-V3" 999 | -10/Mines | Met a Derelict who couldn't figure out how to use a Trap Extractor 1023 | -10/Mines | Deemed a non-threat by the Exiles lab entrance 1023 | -10/Mines | Discovered new exit (range 5) 1041 | -10/Mines | Entered Exiles 1041 | -10/Exiles | Accompanied by 3 allies 1050 | -10/Exiles | Met 8R-AWN 1056 | -10/Exiles | Met EX-HEX 1067 | -10/Exiles | Met EX-BIN 1072 | -10/Exiles | Aligned with FarCom system 1073 | -10/Exiles | Given EX-Vault access code 1085 | -10/Exiles | Opened EX-Vault 1089 | -10/Exiles | Found Prototype Device 1099 | -10/Exiles | Warned to stay clear of 0b10 Research branches 1109 | -10/Exiles | Met EX-DEC 1122 | -10/Exiles | Discovered new exit (range 12) 1194 | -10/Exiles | Left Exiles lab with Supersonic Drone Bay 1194 | -10/Exiles | Entered Mines 1194 | -9/Mines | Accompanied by 3 allies 1200 | -9/Mines | Identified exit to Materials 1207 | -9/Mines | Assembled infested the area 1214 | -9/Mines | Met a Derelict bent on vengeance 1223 | -9/Mines | Entered Materials 1223 | -8/Materials | Accompanied by 3 allies 1223 | -8/Materials | Evolved 4 slots: Propulsion x1, Utility x3 1235 | -8/Materials | Identified Supersonic Drone Bay 1321 | -8/Materials | Discovered new exit (range 15) 1665 | -8/Materials | Lost 3 parts (1p1n1w) 1682 | -8/Materials | Core integrity fell below 50% 1690 | -8/Materials | Core integrity fell below 20% 1698 | -8/Materials | Destroyed by C-17 Slicer with Blade Saw Last Messages --------------- 01671_ Imp. Propulsion Shielding destroyed. 01671_ VTOL Module destroyed. 01671_ Flight Unit destroyed. 01673_ Jacked C-17 Slicer... >>parse_system Reading system data... 01674_ Jacked C-17 Slicer... 01674_ Command string: reboot 01674_ No effect. 01675_ EM Pulse Cannon destroyed. 01677_ Adv. Weight Redist. System destroyed. 01677_ Critical hit (Burn: +37). 01677_ Imp. Datajack destroyed. 01678_ System Shield severed. 01687_ Adv. Targeting Computer severed. 01687_ >> MONITOR: Recycling Unit M001 accepting Reaction Control System (100%). 01690_ >> MONITOR: Recycling Unit M001 accepting Lgt. Ion Engine (95%). 01693_ >> MONITOR: Recycling Unit M001 accepting Lgt. Treads (71%). 01696_ >> MONITOR: Recycling Unit M001 accepting Lgt. Treads (96%). Map ----- +----------------------------------------------------+ | ???????????????????????????????? | | ???????????????????????????????? | | ???????????????????????????????? | | ???????????????????????????????? | | ???????????????????????????????? | | ???????????????????????????????? | | ???????????????????????????????? | | ???????????????????????????????? | | ???????????????????????????????? | | ???????????????????????????????? | | ???????????????????????????????? | | ???????????????????????????????? | | ????????????????????? ???????? | | ????????????????????? ???????? | | ????????????????????? ???????? | | ????????????????????? ???????? | | ?????????????????????# ???????? | | ?????????????????????# #??????? | | ?????????????????????# #??????? | | ?????????????????????# #??????? | | ?????????????????????# #?###??? | | ?????????????????????# ### #### | | ?????????????????????# # Y # | | ?????????????????????# # T # | | ?????????????????????# # [ # | | ?????????????????????# #@c !# | | ?????????????????????# ca # | | ?????????????????????# # /// # | | ?????????????????????# #| /// # | | ?????????????????????# # // # | | ?????????????????????# ######## | | ########?????????????# #?"""" ? | | #?????????????# # """" ? | | #?????????????# # """" # | | #?????????????# + # | | +### #?????????????# # %# | | ???# #?????????????# # = # | | ???# #?????????????# #######? | | ???# #######+####??# # # | | ???# #### + """ # | | ???+ # """ # | | ???# # """ # | | ???# #######/####### #? # | | ???# #??# #?# #? """ # | | ???# #??# #?# #??""" # | | #### #??# #?# #??""" # | | #??# #?# #??? ?# | | #??# #?# #???""?? | | #??# #?# #??????? | | ###### #??# #?# #??????? | +----------------------------------------------------+ Best States ------------- Heat Dissipation 41 Energy Generation 14 Energy Capacity 250 Matter Stores 300 Matter Capacity 300 Sight Range 16 Terrain Scan Density 10 Additional Mass Support 9 Propulsion Shielding 66 Evasion (%) 71 Targeting Accuracy 8 Defensive Hacking 10 Item Schematics ----------------- Imp. Datajack | -8/Materials | Scanalyzed Adv. Weight Redist. System | -8/Materials | Scanalyzed EM Pulse Cannon | -8/Materials | Scanalyzed Beam Rifle | -8/Materials | Scanalyzed VTOL Module | -8/Materials | Scanalyzed Imp. Propulsion Shielding | -8/Materials | Scanalyzed Robot Schematics ------------------ None Fabricated ------------ Nothing Alien Tech Used ----------------- None Achievements -------------- None Challenges ------------ None Game ------ Seed PhysicsCoilKinecellerator Manual? 0 Play Time 00:40:51 Cumulative 29.3 hours Start 2022.10.16 @ 12:07:57 End 2022.10.16 @ 13:11:17 Sessions 1 Manual Loads 0 Difficulty Rogue Special Mode None Game No. 52 Rogue 52 Adventurer 0 Explorer 0 Win Type - Total 0 Types 0/0/0/0/0/0/0/0/0 Lore% 18 Gallery% 22 Achievement% 24 Wizard Run 0 Options --------- ASCII 0 Keyboard 0 Movement Numpad Keybinds 0 Fullscreen 2 Font 18/TerminusBold Map View 76x50 Tactical HUD 1 Map Filters NONE Filters NONE Steam 1 RUN: a2e1acbe-b6cb-4fd2-b094-58e59e3849ad